Cogmind - Beta 15 @@@ ROGUE MODE // 2025.08.02 @ 14:00:23 Player: SpaceExplorer337 Result: Destroyed by G-73 Enforcer with Heavy Laser Performance ------------- Evolutions (7) 3500 Regions Visited (15) 3000 Robots Destroyed (27) 135 Value Destroyed (896) 896 Prototype IDs (6) 120 Alien Tech Used (0) 0 Bonus (0) 0 TOTAL SCORE: 7651 Bonus ------- None Cogmind --------- Core Integrity 0/1300 Matter 147/300 Energy 350/350 System Corruption 12% Temperature Cool (18) Movement Core (500) Ox9 Location -3/Research Parts ------- > --- POWER (3) -------- Reinforced Quantum Reactor > --- PROPULSION (6) --- (None) > --- UTILITY (8) ------ (None) > --- WEAPON (4) ------- (None) > --- INVENTORY (5) ---- Micro Antimatter Reactor Improved Energy Well (400) Advanced Target Analyzer Peak State ------------ > --- POWER ------------ Fusion Compressor Fusion Compressor > --- PROPULSION ------- Gravmag Array > --- UTILITY ---------- Improved Cooling System Advanced Sensor Array Advanced Targeting Computer Advanced Particle Charger Advanced Transmission Jammer Thermal Shield System Shield System Shield > --- WEAPON ----------- Wave Gun Matter Neutralizer > --- INVENTORY -------- Fusion Compressor [Rating: 70] Favorites ----------- Power Fusion Compressor Engine Light Deuterium Engine Power Core Fusion Compressor Reactor Micro Antimatter Reactor Propulsion Cooled Airjet Leg Aluminum Leg Hover Unit Cooled Airjet Flight Unit VTOL Module Utility System Shield Device Advanced Sensor Array Storage Small Storage Unit Processor Advanced Targeting Computer Hackware System Shield Weapon Heavy Ion Cannon Energy Gun Wave Gun Energy Cannon Heavy Ion Cannon Ballistic Gun Assault Rifle Ballistic Cannon Gauss Cannon Launcher Precision Grenade Launcher Build | -11 -10 -9 -9 -8 -7 -6 -6 -6 -5 -4 -4 -4 -4 -4 -3 ------- Run | Yrd Mat Mat Min Mat Fac Fac Ext Cet Fac Fac Was Fac Upp Upp Res Slots Evolved 14 | . . 2 . 2 2 2 . . 2 2 . . . . 2 Power 2 | . . . . . 1 . . . 1 . . . . . . Propulsion 4 | . . 2 . 1 1 . . . . . . . . . . Utility 6 | . . . . 1 . 2 . . 1 2 . . . . . Weapon 2 | . . . . . . . . . . . . . . . 2 Parts Attached 77 | 6 2 8 2 6 13 6 1 3 7 3 . 6 1 1 12 Power 12 | 1 . 1 . 1 3 1 . . . . . 2 . 1 2 Engine 6 | 1 . 1 . 1 2 1 . . . . . . . . . Core 4 | . . . . . 1 . . . . . . 2 . 1 . Reactor 2 | . . . . . . . . . . . . . . . 2 Propulsion 28 | 2 . 6 . 4 8 2 1 . 3 . . . . . 2 Treads . | . . . . . . . . . . . . . . . . Leg 5 | 2 . 2 . . . . . . 1 . . . . . . Wheel . | . . . . . . . . . . . . . . . . Hover 20 | . . 4 . 4 6 2 1 . 2 . . . . . 1 Flight 3 | . . . . . 2 . . . . . . . . . 1 Utility 16 | 1 1 . . 1 . 2 . 1 3 3 . 2 . . 2 Device 9 | . . . . 1 . 1 . . 2 2 . 2 . . 1 Storage 2 | 1 . . . . . . . . . . . . . . 1 Processor 2 | . . . . . . 1 . 1 . . . . . . . Hackware 3 | . 1 . . . . . . . 1 1 . . . . . Protection . | . . . . . . . . . . . . . . . . Artifact . | . . . . . . . . . . . . . . . . Weapon 21 | 2 1 1 2 . 2 1 . 2 1 . . 2 1 . 6 Energy Gun 5 | . . 1 1 . . . . . . . . 1 . . 2 Energy Cannon 7 | . . . . . 2 1 . 2 . . . 1 1 . . Ballistic Gun 3 | 2 1 . . . . . . . . . . . . . . Ballistic Cannon 5 | . . . 1 . . . . . . . . . . . 4 Launcher 1 | . . . . . . . . . 1 . . . . . . Special Weapon . | . . . . . . . . . . . . . . . . Impact Weapon . | . . . . . . . . . . . . . . . . Slashing Weapon . | . . . . . . . . . . . . . . . . Piercing Weapon . | . . . . . . . . . . . . . . . . Special Melee Weapon . | . . . . . . . . . . . . . . . . Unidentified Prototypes 6 | . . . . . 1 1 . . 1 . . 1 . . 2 Parts Lost 53 | . . 4 . 5 6 . 14 1 . . 2 1 . 10 10 Power 8 | . . 1 . 1 1 . 3 . . . . 1 . 1 . Propulsion 19 | . . 1 . 4 3 . 7 . . . 1 . . 1 2 Utility 10 | . . . . . . . 2 1 . . . . . 5 2 Weapon 16 | . . 2 . . 2 . 2 . . . 1 . . 3 6 Highest Loss Streak 10 | . . 4 . 4 2 . 7 1 . . 2 1 . 10 4 To Critical Strikes 1 | . . . . . . . . 1 . . . . . . . Average Backups 4 | 2 3 7 6 6 7 7 5 4 4 3 3 4 2 3 1 Power . | 1 1 . . 1 . . . . . . . 2 1 . . Propulsion 1 | . . 3 4 3 2 1 . . . . . . . . . Utility 1 | . . 1 1 1 2 2 3 2 2 . . . . 1 . Weapon 1 | . 1 1 . . 1 3 2 1 2 3 3 1 . 1 . Tool/Special . | . . . . . . . . . . . . . . . . Unused Backups 11 | . . . 1 . 3 2 . . . . . 3 . 1 1 Power 4 | . . . . . . . . . . . . 3 . 1 . Propulsion 2 | . . . 1 . 1 . . . . . . . . . . Utility 3 | . . . . . 2 . . . . . . . . . 1 Weapon 2 | . . . . . . 2 . . . . . . . . . Tool/Special . | . . . . . . . . . . . . . . . . Average Slot Usage (%) 67 | . 92 97 100 92 83 99 70 19 44 64 62 63 60 22 33 Engine 4 | . 14 10 11 7 3 13 4 . . . . . . . . Core 2 | . . . . . 5 . 3 . . . . 9 6 . . Leg 4 | . 28 40 . . . . . . 1 5 4 . . . . Hover 15 | . . . 44 39 34 40 26 . 10 10 8 5 5 1 . Device 11 | . . . . 8 7 13 12 6 15 23 24 23 26 8 9 Storage 4 | . 14 11 11 9 7 6 5 . . . . . . . 3 Processor 2 | . . . . . . 5 6 8 5 5 5 5 5 5 . Hackware 6 | . 7 11 11 9 7 6 1 . 5 10 10 10 10 3 . Energy Gun 3 | . . 1 11 9 3 . . . . . . 4 3 1 5 Energy Cannon 3 | . . . . . 6 13 7 4 . 8 7 4 3 1 . Ballistic Gun 2 | . 28 20 1 . . . . . . . . . . . . Ballistic Cannon 2 | . . . 9 9 1 . . . . . . . . . 6 Peak Build Rating 70 | 6 9 19 27 36 51 60 59 18 48 62 62 70 70 55 60 Average Rating 40 | 4 7 11 26 31 38 58 40 10 40 59 55 64 62 21 43 On Entrance 30 | . 6 9 19 27 28 51 59 8 8 48 62 38 70 55 1 Naked Turns 31 | . . . . . . . . . . . . . . 2 29 Heaviest Build 56 | 11 12 14 22 29 33 35 35 18 13 25 25 37 35 19 56 Greatest Support 58 | 20 20 40 32 38 50 57 58 3 29 29 29 20 20 20 4 Greatest Overweight (x) 18 | . . 1 . . . . 2 5 . . . 1 1 3 18 Average Overweight (x) . | . . . . . . . . . . . . . . . 2 Largest Inventory Capacity 8 | 8 8 8 8 8 8 8 8 5 5 5 5 5 5 5 5 Average Capacity 6 | 7 8 8 8 8 8 8 7 5 5 5 5 5 5 5 5 Most Carried 8 | 5 8 8 8 8 8 8 7 5 5 4 3 5 5 5 5 Average Carried 4 | 2 3 7 6 6 7 7 5 4 4 3 3 4 2 3 1 Final Capacity 8 | 8 8 8 8 8 8 8 5 5 5 5 5 5 5 5 5 Final Carried 8 | 2 8 6 7 5 8 7 5 4 5 3 3 1 5 3 3 Class Distribution -------------------- 63% | Mutant 24% | Hacker-Mutant 11% | Skirmisher Dominant Class ---------------- Mutant | -10/Materials Mutant | -9/Materials Mutant | -9/Mines Mutant | -8/Materials Mutant | -7/Factory Mutant | -6/Factory Mutant | -6/Extension Mutant | -6/Cetus Mutant | -5/Factory Hacker-Mutant | -4/Factory Hacker-Mutant | -4/Waste Hacker-Mutant | -4/Factory Hacker-Mutant | -4/Upper Caves Mutant | -4/Upper Caves Skirmisher | -3/Research Resources | -11 -10 -9 -9 -8 -7 -6 -6 -6 -5 -4 -4 -4 -4 -4 -3 ----------- Run | Yrd Mat Mat Min Mat Fac Fac Ext Cet Fac Fac Was Fac Upp Upp Res Matter Collected 1291 | 280 64 74 125 77 163 133 . . . . . . 82 202 91 Remotely . | . . . . . . . . . . . . . . . . Salvage Created 996 | 77 112 168 10 112 47 133 . . . . . 20 . 147 170 Parts 56 | 2 10 10 1 5 . 7 . . . . . 2 . 5 14 Haulers Intercepted 3 | . . . . 1 1 1 . . . . . . . . . Recyclers Shooed 4 | . 1 3 . . . . . . . . . . . . . Parts Field Recycled . | . . . . . . . . . . . . . . . . Retrieved Matter . | . . . . . . . . . . . . . . . . Parts Self-Destructed 5 | . . . . . . . . . . . . . . 5 . Prevented . | . . . . . . . . . . . . . . . . Kills | -11 -10 -9 -9 -8 -7 -6 -6 -6 -5 -4 -4 -4 -4 -4 -3 ------- Run | Yrd Mat Mat Min Mat Fac Fac Ext Cet Fac Fac Was Fac Upp Upp Res Combat Hostiles Destroyed 15 | . 2 4 1 . . . . . . . . 1 . 4 3 Guns 10 | . 2 4 . . . . . . . . . . . 3 1 Cannons 4 | . . . 1 . . . . . . . . 1 . 1 1 AOE 1 | . . . . . . . . . . . . . . . 1 Classes Destroyed 10 | 1 2 1 1 1 . 1 . . . . . . . 1 2 Worker 1 | . . . . . . . . . . . . . . . 1 Builder 1 | . . . . . . 1 . . . . . . . . . Hauler 3 | . . . . 1 1 1 . . . . . . . . . Recycler 2 | 1 . . . 1 . . . . . . . . . . . Operator 2 | . 1 . . 1 . . . . . . . . . . . Watcher 3 | . . 1 . . 1 . . . . . . . . . 1 Swarmer 5 | . . . 1 . . . . . . . . 1 . 3 . Grunt 6 | . 2 4 . . . . . . . . . . . . . Hunter 1 | . . . . . . . . . . . . . . 1 . Programmer 3 | . . . . . . . . . . . . . . . 3 Best Kill Streak 5 | 1 2 4 1 2 1 1 . . . . . 1 . 3 5 Combat Bots Only 3 | . 2 3 1 . . . . . . . . 1 . 3 3 Max Kills in Single Turn 2 | 1 1 1 1 1 1 1 . . . . . 1 . 1 2 Gunslinging . | . . . . . . . . . . . . . . . . Exploded 1 | . . . . . . . . . . . . . . . 1 Melee . | . . . . . . . . . . . . . . . . Uniques/NPCs Destroyed . | . . . . . . . . . . . . . . . . Combat | -11 -10 -9 -9 -8 -7 -6 -6 -6 -5 -4 -4 -4 -4 -4 -3 -------- Run | Yrd Mat Mat Min Mat Fac Fac Ext Cet Fac Fac Was Fac Upp Upp Res Hostile Shots Fired 842 | . 10 61 20 48 26 39 251 13 1 . 2 17 4 126 224 Missed 324 | . 3 14 10 21 6 22 127 5 . . . 5 2 42 67 Hits 518 | . 7 47 10 27 20 17 124 8 1 . 2 12 2 84 157 Melee 2 | . . . . . . . . . . . 2 . . . . Projectile 516 | . 7 47 10 27 20 17 124 8 1 . . 12 2 84 157 Critical Strikes 22 | . . 2 . 4 . . 2 1 . . 2 1 . 1 9 Part Disruptions 3 | . . . . . . . . . . . . . . . 3 Damage Taken 8142 | . 77 647 160 387 267 146 1529 227 21 . 85 179 35 1335 3047 Core 2919 | . . 80 15 42 15 . 461 144 21 . . 30 17 776 1318 Absorbed by Shields . | . . . . . . . . . . . . . . . . Regen/Repaired (Parts) 27 | . . . . . . . . . . . . 27 . . . Core Remaining (%) 77 | 100 100 . 76 92 97 . . 28 97 . . . . 28 . Volleys Fired 100 | 5 8 32 2 11 13 3 . 2 . . . 2 . 8 14 Largest 4 | 2 2 2 2 2 2 2 . 2 . . . 2 . 1 4 Hottest 291 | 40 40 60 115 115 140 145 . 145 . . . 186 . 105 291 Shots Fired 198 | 10 16 64 4 22 21 6 . 4 . . . 4 . 8 39 Gun 144 | 10 16 64 2 11 13 . . . . . . 2 . 5 21 Cannon 54 | . . . 2 11 8 6 . 4 . . . 2 . 3 18 Launcher . | . . . . . . . . . . . . . . . . Special . | . . . . . . . . . . . . . . . . Kinetic 121 | 10 16 63 2 11 1 . . . . . . . . . 18 Thermal 77 | . . 1 2 11 20 6 . 4 . . . 4 . 8 21 Explosive . | . . . . . . . . . . . . . . . . Electromagnetic . | . . . . . . . . . . . . . . . . Robot Hit Streak 10 | 4 2 10 1 3 6 5 . 3 . . . . . 4 4 Robot Miss Streak 5 | 3 3 3 3 3 4 1 . 1 . . . 4 . 1 5 Penetration Max . | . . . . . . . . . . . . . . . . Secondary Targets . | . . . . . . . . . . . . . . . . Shots Hit Robots 109 | 6 7 47 1 7 8 5 . 3 . . . . . 7 18 Core Hits 52 | 2 4 14 1 3 2 3 . 3 . . . 1 . 9 10 Critical Kills . | . . . . . . . . . . . . . . . . Critical Parts Destroyed 3 | . . . . . . . . . . . . . . . 3 Critical Strikes 7 | . . . . 1 2 . . . . . . . . . 4 Burn 3 | . . . . 1 2 . . . . . . . . . . Destroy 3 | . . . . . . . . . . . . . . . 3 Blast 1 | . . . . . . . . . . . . . . . 1 Melee Attacks . | . . . . . . . . . . . . . . . . Impact . | . . . . . . . . . . . . . . . . Slashing . | . . . . . . . . . . . . . . . . Piercing . | . . . . . . . . . . . . . . . . Sneak Attacks . | . . . . . . . . . . . . . . . . Combat Hostiles . | . . . . . . . . . . . . . . . . Follow-up Attacks . | . . . . . . . . . . . . . . . . Damage Inflicted 3065 | 55 109 589 27 214 316 170 44 78 . . . 62 . 264 1137 Guns 1483 | 55 109 589 . 63 103 . . . . . . 25 . 98 441 Cannons 925 | . . . 27 141 86 135 . 78 . . . 37 . 106 315 Explosions 490 | . . . . . 109 . . . . . . . . . 381 Melee . | . . . . . . . . . . . . . . . . Ramming 167 | . . . . 10 18 35 44 . . . . . . 60 . Kinetic 1254 | 55 109 577 27 141 30 . . . . . . . . . 315 Thermal 1263 | . . 12 . 63 268 135 . 78 . . . 62 . 204 441 Explosive 381 | . . . . . . . . . . . . . . . 381 Electromagnetic . | . . . . . . . . . . . . . . . . Impact . | . . . . . . . . . . . . . . . . Slashing . | . . . . . . . . . . . . . . . . Piercing . | . . . . . . . . . . . . . . . . Highest Corruption 12 | . . . . . 1 . . . . . . 6 6 7 12 Average Corruption 4 | . . . . . 1 . . . . . . 4 6 6 5 Corruption Purged . | . . . . . . . . . . . . . . . . Corruption Blocked . | . . . . . . . . . . . . . . . . Effects 26 | . . . . . . . . . . . . 1 17 4 4 Message Errors 9 | . . . . . . . . . . . . . 6 2 1 Matter Fused 6 | . . . . . . . . . . . . . 4 1 1 Heat Flow Errors 1 | . . . . . . . . . . . . 1 . . . Energy Discharges 5 | . . . . . . . . . . . . . 4 . 1 Parts Rejected 1 | . . . . . . . . . . . . . . . 1 Data Loss (minor) 2 | . . . . . . . . . . . . . 1 1 . Data Loss (major) 1 | . . . . . . . . . . . . . 1 . . Alerts 1 | . . . . . . . . . . . . . 1 . . Overload Shots . | . . . . . . . . . . . . . . . . Overflow Damage 210 | . . . . . 141 . 14 . . . . . . . 55 Projectiles . | . . . . . . . . . . . . . . . . Explosions 196 | . . . . . 141 . . . . . . . . . 55 Melee 14 | . . . . . . . 14 . . . . . . . . Knockbacks 7 | . . . . . . 1 1 . . . . . . . 5 Impact 2 | . . . . . . 1 1 . . . . . . . . Kinetic 5 | . . . . . . . . . . . . . . . 5 Secondary . | . . . . . . . . . . . . . . . . Self-Inflicted Damage 206 | . . . . 5 78 17 22 . . . . . . 27 57 Shots 2 | . . . . . 1 . . . . . . . . . 1 Rammed 23 | . . . . 1 1 2 1 . . . . . . 18 . Targets Rammed 23 | . . . . 1 1 2 1 . . . . . . 18 . Kicked . | . . . . . . . . . . . . . . . . Crushed . | . . . . . . . . . . . . . . . . Highest Temperature 408 | . . 23 114 220 300 221 4 33 . . . 368 . 45 408 Average Temperature 107 | . . 12 63 90 99 111 3 22 . . . 274 . 26 141 Received Heat Transfer 1423 | . 42 291 63 207 . 18 423 9 . . . . 9 . 361 Siege Activations . | . . . . . . . . . . . . . . . . Martial Activations . | . . . . . . . . . . . . . . . . Shielding Activations . | . . . . . . . . . . . . . . . . Robots Disrupted . | . . . . . . . . . . . . . . . . Combat Hostiles . | . . . . . . . . . . . . . . . . Robots Corrupted . | . . . . . . . . . . . . . . . . Combat Hostiles . | . . . . . . . . . . . . . . . . Parts Fried . | . . . . . . . . . . . . . . . . Impact Corruptions 1 | . . . . . . . 1 . . . . . . . . Robots Melted . | . . . . . . . . . . . . . . . . Combat Hostiles . | . . . . . . . . . . . . . . . . Parts Melted 3 | . . . . . 1 . . . . . . . . . 2 Heat Transferred 1866 | . . 25 . 185 507 211 . 124 . . . 74 . 259 481 Parts Sabotaged . | . . . . . . . . . . . . . . . . Parts Stolen . | . . . . . . . . . . . . . . . . Parts Stripped . | . . . . . . . . . . . . . . . . Power Chain Reactions . | . . . . . . . . . . . . . . . . Alert | -11 -10 -9 -9 -8 -7 -6 -6 -6 -5 -4 -4 -4 -4 -4 -3 ------- Run | Yrd Mat Mat Min Mat Fac Fac Ext Cet Fac Fac Was Fac Upp Upp Res Maximum Alert Level . | . . . . . . . . . . . . . . . . Low Security (%) 100 | 100 100 100 100 100 100 100 100 100 100 100 100 100 . . 100 Level 1 . | . . . . . . . . . . . . . . . . Level 2 . | . . . . . . . . . . . . . . . . Level 3 . | . . . . . . . . . . . . . . . . Level 4 . | . . . . . . . . . . . . . . . . Level 5 . | . . . . . . . . . . . . . . . . High Security . | . . . . . . . . . . . . . . . . Max Security . | . . . . . . . . . . . . . . . . Peak Influence 150 | 5 44 87 81 69 129 14 150 16 . . . 48 . . 111 Initial 29 | . . 9 6 25 29 3 1 16 . . . . . . 23 Average 22 | . 11 19 39 26 54 1 48 7 . . . 10 . . 19 Influence Increases 1342 | 5 59 127 156 124 209 32 180 . . . . 70 60 120 200 Destroy 0b10 Robot/C 300 | . 40 80 20 . . . . . . . . 20 . 80 60 Destroy 0b10 Robot/NC 60 | 5 5 5 . 15 10 10 . . . . . . . . 10 Destroy Leader 52 | . 10 12 . 2 4 2 . . . . . . . 10 12 Successful Hack 98 | . 4 . . 9 17 20 . . . . . 48 . . . Disable Machine 135 | . . . . 15 105 . . . . . . . . . 15 Destroy Structure 112 | . . . 1 8 43 . . . . . . 2 . . 58 Partial Spotted 45 | . . . . . 15 . . . . . . . . . 30 Lose Combat Pursuer 540 | . . 30 135 75 15 . 180 . . . . . 60 30 15 Influence Decreases 1340 | 5 35 134 107 125 266 36 154 30 . . . 50 80 85 233 Entered New Map 145 | . . 15 11 41 36 5 3 14 . . . . 8 . 12 Time Decay 837 | 5 35 79 96 51 170 31 81 16 . . . 50 72 30 121 Lost Part 358 | . . 40 . 33 60 . 70 . . . . . . 55 100 Squads Dispatched 11 | . 1 . . 1 1 3 2 . 1 . . . . . 2 Investigation 2 | . . . . . . 1 1 . . . . . . . . Extermination 4 | . . . . . 1 1 . . 1 . . . . . 1 Reinforcement 5 | . 1 . . 1 . 1 1 . . . . . . . 1 Assault . | . . . . . . . . . . . . . . . . Garrison . | . . . . . . . . . . . . . . . . Intercept . | . . . . . . . . . . . . . . . . Searches Triggered . | . . . . . . . . . . . . . . . . Construction Impeded 3 | . . . . 1 . . 1 . . . . . . . 1 Haulers Reinforced . | . . . . . . . . . . . . . . . . Active Scanning Responses . | . . . . . . . . . . . . . . . . Cargo Convoy Interrupts . | . . . . . . . . . . . . . . . . Stealth | -11 -10 -9 -9 -8 -7 -6 -6 -6 -5 -4 -4 -4 -4 -4 -3 --------- Run | Yrd Mat Mat Min Mat Fac Fac Ext Cet Fac Fac Was Fac Upp Upp Res Distress Signals 9 | . . 4 . 1 . . 1 1 . . . . . . 2 Communications Jammed . | . . . . . . . . . . . . . . . . Distress Signals . | . . . . . . . . . . . . . . . . Times Spotted 125 | . 3 13 13 17 5 6 22 5 1 . 6 4 2 9 19 Peak Tracking Total 13 | . 2 6 7 13 3 7 13 5 2 . 6 4 4 7 12 Tactical Retreats 17 | . . 1 5 2 1 . 4 . . . . . 1 2 1 Traps | -11 -10 -9 -9 -8 -7 -6 -6 -6 -5 -4 -4 -4 -4 -4 -3 ------- Run | Yrd Mat Mat Min Mat Fac Fac Ext Cet Fac Fac Was Fac Upp Upp Res Traps Triggered 7 | . . . 1 . . . 1 . . 1 . 4 . . . Indirectly . | . . . . . . . . . . . . . . . . Trap Hack Attempts . | . . . . . . . . . . . . . . . . Triggered . | . . . . . . . . . . . . . . . . Disarmed 3 | . 3 . . . . . . . . . . . . . . Reprogrammed . | . . . . . . . . . . . . . . . . Reused . | . . . . . . . . . . . . . . . . Traps Extracted . | . . . . . . . . . . . . . . . . Installed . | . . . . . . . . . . . . . . . . Triggered . | . . . . . . . . . . . . . . . . Machines | -11 -10 -9 -9 -8 -7 -6 -6 -6 -5 -4 -4 -4 -4 -4 -3 ---------- Run | Yrd Mat Mat Min Mat Fac Fac Ext Cet Fac Fac Was Fac Upp Upp Res Machines Disabled 9 | . . . . 1 7 . . . . . . . . . 1 Max in Single Turn 6 | . . . . 1 6 . . . . . . . . . 1 Machines Repaired . | . . . . . . . . . . . . . . . . Machines Dismantled . | . . . . . . . . . . . . . . . . Machines Sabotaged . | . . . . . . . . . . . . . . . . Overloaded Fab Kills . | . . . . . . . . . . . . . . . . Hacking | -11 -10 -9 -9 -8 -7 -6 -6 -6 -5 -4 -4 -4 -4 -4 -3 --------- Run | Yrd Mat Mat Min Mat Fac Fac Ext Cet Fac Fac Was Fac Upp Upp Res Machines Accessed 21 | . 2 1 1 3 8 3 1 . . . . 2 . . . Terminals 15 | . 2 1 . 3 5 3 1 . . . . . . . . Fabricators 2 | . . . . . 2 . . . . . . . . . . Repair Stations 1 | . . . . . . . . . . . . 1 . . . Recycling Units 1 | . . . . . . . . . . . . 1 . . . Scanalyzers 1 | . . . . . 1 . . . . . . . . . . Garrison Access . | . . . . . . . . . . . . . . . . Total Hacks 57 | . 8 3 1 11 18 7 2 . . . . 7 . . . Successful 35 | . 7 2 1 6 10 4 . . . . . 5 . . . Failed 20 | . 1 1 . 4 7 3 2 . . . . 2 . . . Catastrophic 3 | . . . . . 1 1 1 . . . . . . . . Database Lockouts 2 | . . . . 1 1 . . . . . . . . . . Manual . | . . . . . . . . . . . . . . . . Terminals 43 | . 8 3 . 11 12 7 2 . . . . . . . . Fabricators 5 | . . . . . 5 . . . . . . . . . . Repair Stations 3 | . . . . . . . . . . . . 3 . . . Recycling Units 4 | . . . . . . . . . . . . 4 . . . Scanalyzers 1 | . . . . . 1 . . . . . . . . . . Garrison Access . | . . . . . . . . . . . . . . . . Terminal Hacks 28 | . 7 2 1 6 8 4 . . . . . . . . . Record 16 | . 3 2 . 4 6 1 . . . . . . . . . Robot Analysis 1 | . . . . . 1 . . . . . . . . . . Open Door 1 | . . . 1 . . . . . . . . . . . . Branch Access Points 1 | . . . . . . 1 . . . . . . . . . Alert Level 2 | . . . . 1 1 . . . . . . . . . . Locate Traps 4 | . 1 . . 1 . 2 . . . . . . . . . Disarm Traps 1 | . 1 . . . . . . . . . . . . . . Zone Layout 2 | . 2 . . . . . . . . . . . . . . Fabricator Hacks 2 | . . . . . 2 . . . . . . . . . . Network Status 2 | . . . . . 2 . . . . . . . . . . Repair Station Hacks 2 | . . . . . . . . . . . . 2 . . . Scan Component 1 | . . . . . . . . . . . . 1 . . . Repair 1 | . . . . . . . . . . . . 1 . . . Recycling Unit Hacks 3 | . . . . . . . . . . . . 3 . . . Recycle Component 1 | . . . . . . . . . . . . 1 . . . Process 1 | . . . . . . . . . . . . 1 . . . Retrieve Matter 1 | . . . . . . . . . . . . 1 . . . Scanalyzer . | . . . . . . . . . . . . . . . . Garrison Access Hacks . | . . . . . . . . . . . . . . . . Unauthorized Hacks . | . . . . . . . . . . . . . . . . Terminals . | . . . . . . . . . . . . . . . . Fabricators . | . . . . . . . . . . . . . . . . Repair Stations . | . . . . . . . . . . . . . . . . Recycling Units . | . . . . . . . . . . . . . . . . Scanalyzers . | . . . . . . . . . . . . . . . . Garrison Access . | . . . . . . . . . . . . . . . . Data Cores Recovered 1 | . . . . 1 . . . . . . . . . . . Used . | . . . . . . . . . . . . . . . . Hacking Detections 16 | . 1 1 . 3 6 3 1 . . . . 1 . . . Full Trace Events 2 | . . . . . . 1 1 . . . . . . . . Feedback Events . | . . . . . . . . . . . . . . . . Feedback Blocked . | . . . . . . . . . . . . . . . . Robot Schematics Acquired . | . . . . . . . . . . . . . . . . Robots Built . | . . . . . . . . . . . . . . . . Authchips . | . . . . . . . . . . . . . . . . Time . | . . . . . . . . . . . . . . . . Total Robot Build Rating . | . . . . . . . . . . . . . . . . Part Schematics Acquired . | . . . . . . . . . . . . . . . . Parts Built . | . . . . . . . . . . . . . . . . Authchips . | . . . . . . . . . . . . . . . . Time . | . . . . . . . . . . . . . . . . Total Part Build Rating . | . . . . . . . . . . . . . . . . Parts Repaired 1 | . . . . . . . . . . . . 1 . . . Time 14 | . . . . . . . . . . . . 14 . . . Parts Recycled 1 | . . . . . . . . . . . . 1 . . . Recycled Matter 63 | . . . . . . . . . . . . 63 . . . Retrieved Matter 63 | . . . . . . . . . . . . 63 . . . Retrieved Components . | . . . . . . . . . . . . . . . . Parts Scanalyzed . | . . . . . . . . . . . . . . . . Part Schematics Acquired . | . . . . . . . . . . . . . . . . Parts Damaged . | . . . . . . . . . . . . . . . . Bothacking | -11 -10 -9 -9 -8 -7 -6 -6 -6 -5 -4 -4 -4 -4 -4 -3 ------------ Run | Yrd Mat Mat Min Mat Fac Fac Ext Cet Fac Fac Was Fac Upp Upp Res Used RIF Installer . | . . . . . . . . . . . . . . . . Robots Hacked . | . . . . . . . . . . . . . . . . Non-combat . | . . . . . . . . . . . . . . . . Combat . | . . . . . . . . . . . . . . . . Robot Hacks Applied . | . . . . . . . . . . . . . . . . Relay Couplers Released . | . . . . . . . . . . . . . . . . Fabnet Peak Effective % . | . . . . . . . . . . . . . . . . Robots Rewired . | . . . . . . . . . . . . . . . . Allies Hacked . | . . . . . . . . . . . . . . . . Hacks Repelled . | . . . . . . . . . . . . . . . . Allies | -11 -10 -9 -9 -8 -7 -6 -6 -6 -5 -4 -4 -4 -4 -4 -3 -------- Run | Yrd Mat Mat Min Mat Fac Fac Ext Cet Fac Fac Was Fac Upp Upp Res Total Allies . | . . . . . . . . . . . . . . . . Largest Group . | . . . . . . . . . . . . . . . . Highest-Rated Group . | . . . . . . . . . . . . . . . . Highest-Rated Ally . | . . . . . . . . . . . . . . . . Total Orders . | . . . . . . . . . . . . . . . . Ally Attacks . | . . . . . . . . . . . . . . . . Total Damage . | . . . . . . . . . . . . . . . . Kills . | . . . . . . . . . . . . . . . . Allies Corrupted . | . . . . . . . . . . . . . . . . Allies Melted . | . . . . . . . . . . . . . . . . Intel | -11 -10 -9 -9 -8 -7 -6 -6 -6 -5 -4 -4 -4 -4 -4 -3 ------- Run | Yrd Mat Mat Min Mat Fac Fac Ext Cet Fac Fac Was Fac Upp Upp Res Active Infowar (turns) 1222 | . . . . 1 . 281 287 . 1 . . 98 . . 554 Sensors 1220 | . . . . . . 281 287 . 1 . . 97 . . 554 Jamming 1 | . . . . . . . . . . . . 1 . . . ECM 40 | . . . . 1 . . . . . . . 39 . . . Robot Analysis Total 1 | . . . . . 1 . . . . . . . . . . Derelict Logs Recovered 3 | . . . 1 . . . . . . . . . 2 . . Drone Launches . | . . . . . . . . . . . . . . . . Drone Recoveries . | . . . . . . . . . . . . . . . . Exploration | -11 -10 -9 -9 -8 -7 -6 -6 -6 -5 -4 -4 -4 -4 -4 -3 ------------- Run | Yrd Mat Mat Min Mat Fac Fac Ext Cet Fac Fac Was Fac Upp Upp Res Turns Passed 3837 | 99 151 286 262 156 359 281 310 54 240 63 64 252 534 114 612 Spaces Moved 4330 | 68 99 132 468 201 670 526 563 76 231 40 108 164 629 100 255 Core 263 | 12 . . . . . . 36 76 8 . . . . 62 69 Treads . | . . . . . . . . . . . . . . . . Legs 275 | 56 99 120 . . . . . . . . . . . . . Wheels . | . . . . . . . . . . . . . . . . Hover 3606 | . . 12 468 201 670 526 527 . 223 40 108 164 629 38 . Flight 186 | . . . . . . . . . . . . . . . 186 Fastest Speed 35 | 50 120 48 48 44 35 35 42 50 46 56 56 60 60 50 35 Average Speed 68 | 107 120 115 48 46 39 38 52 53 48 56 59 105 83 69 209 Slowest Speed 995 | 120 120 120 48 48 52 42 150 300 60 56 70 110 110 200 995 Overloaded Moves . | . . . . . . . . . . . . . . . . Propulsion Burnouts . | . . . . . . . . . . . . . . . . Robots Hopped . | . . . . . . . . . . . . . . . . Potential Cave-ins . | . . . . . . . . . . . . . . . . Cave-ins Triggered . | . . . . . . . . . . . . . . . . Exploration Rate (%) 26 | 4 17 18 68 20 23 15 62 23 3 2 76 4 67 12 11 Regions Visited 15 Branch Regions 5 Pre-discovered Areas . | . . . . . . . . . . . . . . . . Known Exits Taken 3 | . . . . . . 1 1 1 . . . . . . . Unknown Exits Taken 10 | 1 1 1 1 1 1 . . . 1 . . 1 1 1 . Scrap Searched 2 | . . . 1 . . . . . . . . . 1 . . Spaces Dug 4 | . . . . 4 . . . . . . . . . . . Terrain Destroyed 105 | . . . 1 6 70 . . . . . . 1 . . 27 Melee . | . . . . . . . . . . . . . . . . Projectile 15 | . . . 1 6 . . . . . . . 1 . . 7 AOE 90 | . . . . . 70 . . . . . . . . . 20 Terrain Rammed . | . . . . . . . . . . . . . . . . Walls Destroyed . | . . . . . . . . . . . . . . . . Machines Disabled . | . . . . . . . . . . . . . . . . Actions | -11 -10 -9 -9 -8 -7 -6 -6 -6 -5 -4 -4 -4 -4 -4 -3 --------- Run | Yrd Mat Mat Min Mat Fac Fac Ext Cet Fac Fac Was Fac Upp Upp Res Total 5012 | 83 115 202 502 240 741 602 574 85 356 81 107 240 639 140 305 Wait 351 | . . 21 24 17 21 50 . 3 113 33 . 55 6 . 8 Move 4316 | 67 98 131 467 200 669 525 562 75 230 40 107 163 628 99 255 Hop . | . . . . . . . . . . . . . . . . Pick Up 74 | 5 7 6 4 4 13 7 . . 6 2 . 8 . 2 10 Fast Attach 19 | 3 . 1 . . 6 2 . . 2 . . 2 1 . 2 Attach 73 | 3 1 8 2 6 9 5 2 3 5 5 . 6 . 5 13 Detach 16 | . . . . . 2 . . 2 . 1 . . 4 4 3 Swap 2 | . 1 . . 1 . . . . . . . . . . . Drop 30 | . . 3 3 . 7 8 1 . . . . 4 . 4 . Fire 100 | 5 8 32 2 11 13 3 . 2 . . . 2 . 8 14 Melee . | . . . . . . . . . . . . . . . . Ram 23 | . . . . 1 1 2 1 . . . . . . 18 . Kick . | . . . . . . . . . . . . . . . . Crush . | . . . . . . . . . . . . . . . . Escape Stasis 8 | . . . . . . . 8 . . . . . . . . Rewire . | . . . . . . . . . . . . . . . . Trap . | . . . . . . . . . . . . . . . . Miscellaneous . | . . . . . . . . . . . . . . . . Route ------- -11/Scrapyard -10/Materials -9/Materials -9/Mines -8/Materials -7/Factory -6/Factory (discovered 4 exits: Low x2 / *Ext x2) -6/Extension (discovered 2 exits: *Fac / *Cet) -6/Cetus -5/Factory -4/Factory -4/Waste -4/Factory -4/Upper Caves -4/Upper Caves -3/Research History --------- Turn | Location | Event 11 | -11/Scrapyard | Discovered new exit (range 15) 100 | -11/Scrapyard | Entered Materials 185 | -10/Materials | Discovered new exit (range 15) 251 | -10/Materials | Entered another Materials area 251 | -9/Materials | Evolved 2 slots: Propulsion x2 311 | -9/Materials | Build established: Mutant 508 | -9/Materials | Discovered new exit (range 16) 534 | -9/Materials | Lost 4 parts (1p1n2w) 537 | -9/Materials | Entered Mines 541 | -9/Mines | Learned Materials stockpile data 548 | -9/Mines | Met a Derelict who couldn't figure out how to use a Trap Extractor 795 | -9/Mines | Discovered new exit (range 9) 799 | -9/Mines | Entered Materials 799 | -8/Materials | Evolved 2 slots: Propulsion x1, Utility x1 835 | -8/Materials | Central database locked down 918 | -8/Materials | Lost 4 parts (1p3n) 953 | -8/Materials | Discovered new exit (range 4) 955 | -8/Materials | Entered Factory 955 | -7/Factory | Evolved 2 slots: Power x1, Propulsion x1 1073 | -7/Factory | Central database locked down 1297 | -7/Factory | Discovered new exit (range 14) 1314 | -7/Factory | Entered another Factory area 1314 | -6/Factory | Evolved 2 slots: Utility x2 1578 | -6/Factory | Identified exit to Lower Caves 1578 | -6/Factory | Identified exit to Extension 1595 | -6/Factory | Entered Extension 1680 | -6/Extension | Spotted B-75 Beast 1682 | -6/Extension | Spotted B-75 Beast 1753 | -6/Extension | Lost 7 parts (2p3n1u1w) 1874 | -6/Extension | Lost 3 parts (2n1w) 1894 | -6/Extension | Core integrity fell below 50% 1895 | -6/Extension | Discovered new exit (range 16) 1895 | -6/Extension | Discovered new exit (range 15) 1902 | -6/Extension | Identified exit to Cetus 1903 | -6/Extension | Identified exit to Factory 1905 | -6/Extension | Entered Cetus 1913 | -6/Cetus | Spotted Cetus Guard 1913 | -6/Cetus | Spotted Cetus Guard 1913 | -6/Cetus | Spotted Cetus Guard 1913 | -6/Cetus | Spotted Cetus Guard 1917 | -6/Cetus | Lost 4 parts (1p2n1u) 1925 | -6/Cetus | Discovered exit to Factory (range 16) 1959 | -6/Cetus | Entered Factory 1959 | -5/Factory | Evolved 2 slots: Power x1, Utility x1 2035 | -5/Factory | Discovered new exit (range 13) 2199 | -5/Factory | Entered another Factory area 2199 | -4/Factory | Evolved 2 slots: Utility x2 2262 | -4/Factory | Sucked down chute 2262 | -4/Factory | Entered Waste 2283 | -4/Waste | Spotted C-40 Crusher 2283 | -4/Waste | Spotted C-40 Crusher 2284 | -4/Waste | Spotted C-40 Crusher 2298 | -4/Waste | Spotted C-40 Crusher 2300 | -4/Waste | Spotted C-40 Crusher 2302 | -4/Waste | Crushed by Compactor (1 part destroyed, 2 dropped) 2306 | -4/Waste | Spotted C-40 Crusher 2317 | -4/Waste | Crushed by Compactor (1 part destroyed, 1 dropped) 2320 | -4/Waste | Discovered new exit (range 11) 2326 | -4/Waste | Entered Factory 2366 | -4/Factory | Repaired Adv. ECM Suite 2490 | -4/Factory | Build established: Hacker-Mutant 2552 | -4/Factory | Discovered new exit (range 4) 2578 | -4/Factory | Entered Upper Caves 2801 | -4/Upper Caves | Learned Research terminal intel 3044 | -4/Upper Caves | Learned Research stockpile data 3057 | -4/Upper Caves | Discovered new exit (range 6) 3112 | -4/Upper Caves | Entered another Upper Caves area 3133 | -4/Upper Caves | Discovered new exit (range 14) 3194 | -4/Upper Caves | Core integrity fell below 50% 3226 | -4/Upper Caves | Entered Research 3226 | -3/Research | Evolved 2 slots: Weapon x2 3228 | -3/Research | Loaded intel: 23 terminal locations 3228 | -3/Research | Lost 10 parts (1p1n5u3w) 3622 | -3/Research | Build established: Skirmisher 3720 | -3/Research | Lost 4 parts (1n2u1w) 3811 | -3/Research | Lost 4 parts (1n3w) 3817 | -3/Research | Core integrity fell below 50% 3832 | -3/Research | Core integrity fell below 20% 3832 | -3/Research | System corruption reached 10% 3838 | -3/Research | Destroyed by G-73 Enforcer with Heavy Laser Last Messages --------------- 03823_ Critical hit (Burn: +37). 03826_ A-15 Conveyor collects Enh. Hardcell Cannon. 03826_ Penetrated by Slug. 03827_ Acquired Enh. Hardcell Cannon. 03829_ Slug penetrates G-67 Veteran. 03829_ Slug penetrates Fabricator. 03829_ Penetrated by Slug. 03829_ A-15 Conveyor collects Rnf. Quantum Reactor. 03829_ Penetrated by Slug. 03832_ Enh. Hardcell Cannon destroyed. 03832_ A-15 Conveyor collects Rnf. Quantum Reactor. 03835_ Penetrated by Slug. 03835_ Enh. Hardcell Cannon destroyed. 03835_ Penetrated by Slug. 03835_ A-15 Conveyor collects Rnf. Quantum Reactor. 03838_ Penetrated by Slug. Map ----- +----------------------------------------------------+ | ??????????????????????# #?????????????? | | ??????????????????????#####+#"###########+##?????? | | ??????????????????????????# """" ????? | | ??????????????????????????# ""F" ????? | | ??????????????????????????# " ???? | | ??????????????????????????# ???? | | ??????????????????????????# #???? | | ??????????????????????????# #???? | | ??????????????????????????# #???? | | ??????????????????????????# ???? | | ??????????????????????????# """ """ ??? | | ??????????????????????????# h "" """ ?? | | ??????????????????????????+ """ """ ?? | | ??????????????????????????#gg """ """ ?? | | ??????????????????????????# p "" """ ? | | ???????????????????######## g ? | | ???????????????????# ? | | ???????????????????# ? | | ???????????????????# """ """ ? | | ???????????????????# pp"" """ ??? | | ???????????????????# """ """ ?????? | | ???????????????????# """ """ ????? | | ??????????????"????# w """ """ ? | | ??????????????""" # = ? | | ??????????????""" + ? | | ???????????????????# @ ? | | ???????????????????# A k ? | | ???????????????????#### " "" ######+############?? | | ??????????????????????#""F"" #?????? ]???????????? | | ??????????????????????# """""#??????? ??????????? | | ??""?""???????????????########???????? ????????? | | ??""T""???????????????????????????????? ???????? | | ???"""??????????????????????????????????? #??????? | | ??????????????????????????????????????????#??????? | | ?????????????????????????????????????????????????? | | ??????????????????????????????!??????????????????? | | ?????????????????????????????????????????????????? | | ?????????????????????????????????????????????????? | | ?????????????????????????????????????????????????? | | ?????????????????????????????????????????????????? | | ?????????????????????????????????????????????????? | | ?????????????????????????????????????????????????? | | ?????????????????????????????????????????????????? | | ?????????????????????????????????????????????????? | | ?????????????????????????????????????????????????? | | ?????????????????????????????????????????????????? | | ?????????????????????????????????????????????????? | | ?????????????????????????????????????????????????? | | ???????????"""?"""???????????????????????????????? | | ???????????"""T"""???????????????????????????????? | +----------------------------------------------------+ Best States ------------- Heat Dissipation 73 Energy Generation 45 Energy Capacity 550 Matter Stores 300 Matter Capacity 300 Sight Range 16 Robot Scan Range 16 Terrain Scan Density 10 ECM Strength 2 Jamming Range 16 Resistance: TH 20 Evasion (%) 63 Targeting Accuracy 8 Energy Filtering 30 Particle Charging 25 Offensive Hacking 10 Defensive Hacking 20 Item Schematics ----------------- None Robot Schematics ------------------ None Fabricated ------------ Nothing Repaired ---------- Adv. ECM Suite | 10% | -4/Factory Alien Tech Used ----------------- None Achievements -------------- Slippery One Challenges ------------ None Game ------ Seed TripodArcsightBeamcaster Manual? 0 Play Time 01:08:59 Cumulative 26.9 hours Start 2025.08.02 @ 12:52:00 End 2025.08.02 @ 14:00:23 Sessions 2 Manual Loads 0 Difficulty Rogue Special Mode None Game No. 38 Rogue 38 Adventurer 0 Explorer 0 Win Type - Total 0 Types 0/0/0/0/0/0/0/0/0/0 Lore% 18 Gallery% 24 Achievement% 19 Wizard Run 0 Options --------- Layout 1 ASCII 0 Keyboard 0 Movement Mouse Keybinds 0 Fullscreen 1 Font 24/Smallcaps Map View 50x40 Zoom Use 0% Tactical HUD 1 Map Filters NONE Filters NONE Steam 1 RUN: 7518df6c-6d33-49d0-adb0-ed468f00a4c8